bitfinex-derivatives/quotes_SOLF0:USTF0_20241105
["timestamp","ask_amount","ask_price","bid_price","bid_amount"]
[1730779147576,9.64936517,159.58,159.55,3.1357]
[1730779147877,9.64936517,159.58,159.56,4.27471539]
[1730779148174,9.64936517,159.58,159.55,3.1357]
[1730779148374,9.64936517,159.58,159.56,4.27484497]
[1730779148676,9.64936517,159.58,159.55,3.1357]
[1730779148872,9.64936517,159.58,159.56,4.27484501]
[1730779149079,9.64936517,159.58,159.55,3.1357]
[1730779149270,9.64936517,159.58,159.56,4.27440618]
[1730779149575,9.64936517,159.58,159.55,3.1357]
[1730779149765,9.64936517,159.58,159.56,4.27626438]
[1730779149966,9.64936517,159.58,159.57,4.27626438]
[1730779154882,9.64936517,159.58,159.57,4.27653502]
[1730779156979,9.64936517,159.58,159.55,3.1358]
[1730779157169,9.64936517,159.58,159.56,4.27766889]
[1730779157375,9.64936517,159.58,159.55,3.1358]
[1730779157580,9.64936517,159.58,159.56,4.27794785]
[1730779157780,9.64936517,159.58,159.55,3.1358]
[1730779158086,9.64936517,159.58,159.56,4.27801217]
[1730779158379,9.64936517,159.58,159.57,4.27801217]
[1730779158570,9.64936517,159.58,159.57,4.27817628]
[1730779158980,9.64936517,159.58,159.57,4.27821117]
[1730779161475,9.64936517,159.58,159.55,3.1358]
[1730779161677,9.64936517,159.58,159.54,3.1359]
[1730779161678,9.64936517,159.56,159.54,3.1359]
[1730779162482,9.64936517,159.56,159.55,4.27869117]
[1730779162678,9.64936517,159.56,159.53,3.1361]
[1730779164483,9.64936517,159.56,159.54,4.2789494]
[1730779164680,9.64936517,159.56,159.55,4.2789494]
[1730779165277,9.64936517,159.56,159.54,3.1359]
[1730779166481,9.64936517,159.56,159.55,4.27860116]
[1730779166783,9.64936517,159.56,159.55,7.41440116]
[1730779169581,1.3175,159.63,159.55,4.27860116]
[1730779169582,9.64936517,159.58,159.55,4.27860116]
[1730779169782,1.3175,159.63,159.57,3.1354]
[1730779169783,9.64936517,159.59,159.57,3.1354]
[1730779170089,9.64936517,159.59,159.58,4.27860116]
[1730779172681,9.64936517,159.59,159.58,4.27764259]
[1730779172888,9.64936517,159.59,159.57,3.1354]
[1730779173092,9.64936517,159.59,159.58,4.27769024]
[1730779174488,9.64936517,159.59,159.58,7.41289024]
[1730779174791,4.4519,159.63,159.58,4.27769024]
[1730779174792,9.64936517,159.61,159.58,4.27769024]
[1730779174995,9.64936517,159.61,159.59,4.27769024]
[1730779175188,9.64936517,159.61,159.58,3.1352]
[1730779175492,9.64936517,159.61,159.59,4.27816045]
[1730779175689,9.64936517,159.61,159.59,3.135]
[1730779180401,1.9388,159.66,159.6,13.92572351]
[1730779180402,9.64936517,159.66,159.6,13.92572351]
[1730779180597,9.64936517,159.66,159.61,13.92572351]
[1730779180795,9.64936517,159.66,159.62,4.27635834]
[1730779180995,9.64936517,159.66,159.63,4.27635834]
[1730779181193,9.64936517,159.66,159.63,3.1341]
[1730779181403,9.64936517,159.66,159.61,9.64936517]
[1730779181697,9.64936517,159.66,159.62,4.27244047]
[1730779181886,9.64936517,159.66,159.61,9.64936517]
[1730779182091,9.64936517,159.66,159.62,7.40680452]
[1730779182291,9.64936517,159.67,159.62,9.64936517]
[1730779182489,9.64936517,159.7,159.65,9.64936517]
[1730779182696,6.2374,159.73,159.63,2.88]
[1730779182697,9.64936517,159.67,159.63,2.88]
[1730779182902,9.64936517,159.66,159.64,4.26957345]
[1730779183202,9.64936517,159.66,159.63,6.0141]
[1730779183996,9.64936517,159.66,159.63,3.1341]
[1730779185697,9.64936517,159.67,159.63,3.1341]
[1730779187300,9.64936517,159.69,159.63,9.64936517]
[1730779188209,9.64936517,159.7,159.64,9.64936517]
[1730779188516,9.64936517,159.69,159.63,9.64936517]
[1730779188804,9.64936517,159.68,159.63,9.64936517]
[1730779189204,11.05986517,159.73,159.66,9.64936517]
[1730779189397,11.05986517,159.73,159.72,3.1325]
[1730779189398,1.4105,159.73,159.72,3.1325]
[1730779189597,1.4105,159.73,159.71,9.64936517]
[1730779189804,1.4105,159.73,159.69,9.64936517]
[1730779190000,9.64936517,159.72,159.68,12.52936517]
[1730779190200,9.64936517,159.72,159.68,9.64936517]
[1730779190606,12.78186517,159.72,159.68,9.64936517]
[1730779190996,11.05986517,159.73,159.68,9.64936517]
[1730779191197,11.05986517,159.73,159.68,12.78256517]
[1730779191412,11.05986517,159.73,159.69,9.64936517]
[1730779192103,14.19216517,159.73,159.69,9.64936517]
[1730779192608,14.19216517,159.73,159.68,9.64936517]
[1730779192805,11.05986517,159.73,159.68,9.64936517]
[1730779193010,3.1325,159.72,159.68,9.64936517]
[1730779193209,9.64936517,159.72,159.68,9.64936517]
[1730779193505,3.133,159.7,159.64,3.134]
[1730779193710,9.64936517,159.7,159.65,12.52936517]
[1730779194706,9.64936517,159.7,159.65,15.66316517]
[1730779195104,12.78236517,159.7,159.65,15.66316517]
[1730779195703,12.78236517,159.7,159.65,12.78316517]
[1730779196409,3.1331,159.69,159.65,9.64936517]
[1730779196615,9.64936517,159.7,159.65,9.64936517]
[1730779197314,12.78236517,159.7,159.65,9.64936517]
[1730779198417,3.1331,159.69,159.65,9.64936517]
[1730779199516,3.1331,159.69,159.65,12.78316517]
[1730779199917,12.78226517,159.7,159.65,12.78316517]
[1730779202116,9.64936517,159.72,159.67,9.64936517]
[1730779202418,13.97986517,159.73,159.67,9.64936517]
[1730779202716,13.97986517,159.73,159.57,1.3588]
[1730779202717,1.4105,159.73,159.69,9.64936517]
[1730779203018,11.05986517,159.73,159.7,3.1327]
[1730779203514,11.05986517,159.73,159.68,9.64936517]
[1730779203917,9.64936517,159.73,159.68,9.64936517]
[1730779204411,9.64936517,159.73,159.7,3.1328]
[1730779204721,9.64936517,159.75,159.69,9.64936517]
[1730779204916,3.1322,159.74,159.69,12.78226517]
[1730779205214,3.1322,159.74,159.69,9.64936517]
[1730779205417,9.64936517,159.75,159.69,9.64936517]
[1730779205605,9.64936517,159.76,159.71,3.1326]
[1730779206118,12.78116517,159.76,159.71,3.1326]
[1730779207112,3.1319,159.75,159.71,3.1326]
[1730779207417,9.64936517,159.76,159.7,9.64936517]
[1730779207617,12.78116517,159.76,159.7,9.64936517]
[1730779207816,9.64936517,159.75,159.7,9.64936517]
[1730779208209,12.78096517,159.77,159.72,9.64936517]
[1730779208707,12.78096517,159.77,159.73,3.1322]
[1730779210516,12.78126517,159.76,159.72,12.78176517]
[1730779210720,9.64936517,159.76,159.72,12.78176517]
[1730779211119,9.64936517,159.76,159.72,9.64936517]
[1730779211722,3.132,159.75,159.72,9.64936517]
[1730779214023,3.132,159.75,159.72,12.78176517]
[1730779214924,12.78116517,159.76,159.72,12.78176517]
[1730779215125,9.64936517,159.77,159.72,9.64936517]
[1730779215328,9.64936517,159.77,159.73,9.64936517]
[1730779215628,12.78086517,159.77,159.73,12.78146517]
[1730779216423,3.1318,159.76,159.72,3.1324]
[1730779216728,9.64936517,159.77,159.71,9.64936517]
[1730779216927,12.78136517,159.75,159.71,12.78196517]
[1730779217414,12.78126517,159.75,159.72,3.1323]
[1730779217615,12.78126517,159.75,159.71,9.64936517]
[1730779218229,9.64936517,159.75,159.7,12.78216517]
[1730779218527,3.1321,159.74,159.7,12.78216517]
[1730779219321,12.78136517,159.75,159.7,12.78216517]
[1730779221336,12.78136517,159.75,159.71,9.64936517]
[1730779221543,9.64936517,159.77,159.71,12.78186517]
[1730779222130,3.1318,159.76,159.71,12.78186517]
[1730779223235,9.64936517,159.77,159.71,12.78186517]
[1730779223434,3.1319,159.75,159.71,12.78186517]
[1730779224638,3.1321,159.74,159.71,9.64936517]
[1730779225439,3.1317,159.76,159.72,12.78176517]
[1730779225646,3.1317,159.76,159.72,9.64936517]
[1730779226031,12.78126517,159.75,159.71,12.78196517]
[1730779226544,9.64936517,159.77,159.71,12.78196517]
[1730779227043,3.1318,159.76,159.71,12.78196517]
[1730779228637,9.64936517,159.77,159.71,9.64936517]
[1730779228841,3.1321,159.74,159.71,9.64936517]
[1730779229044,9.64936517,159.74,159.69,9.64936517]
[1730779229446,3.1321,159.74,159.71,9.64936517]
[1730779229746,9.64936517,159.75,159.71,9.64936517]
[1730779230141,3.1321,159.74,159.71,9.64936517]
[1730779233843,3.1324,159.73,159.69,12.78226517]
[1730779234046,9.64936517,159.74,159.69,12.78226517]
[1730779234742,12.78156517,159.74,159.69,12.78226517]
[1730779238251,9.64936517,159.74,159.7,3.1328]
[1730779238952,9.64936517,159.74,159.69,9.64936517]
[1730779239151,9.64936517,159.74,159.69,12.78236517]
[1730779239152,12.78146517,159.74,159.69,12.78236517]
[1730779239352,9.64936517,159.74,159.69,9.64936517]
[1730779239953,3.1324,159.73,159.69,9.64936517]
[1730779241051,3.1324,159.73,159.68,12.78246517]
[1730779242556,2.96,159.75,159.61,9.64936517]
[1730779242557,9.64936517,159.7,159.61,9.64936517]
[1730779242754,9.64936517,159.66,159.61,10.94496517]
[1730779243059,12.78306517,159.66,159.61,10.94496517]
[1730779243363,9.64936517,159.66,159.61,1.2956]
[1730779243560,3.1341,159.64,159.61,1.2956]
[1730779244056,3.1339,159.65,159.61,1.2956]
[1730779244258,9.64936517,159.68,159.63,9.64936517]
[1730779244559,12.60936517,159.69,159.63,9.64936517]
[1730779245350,3.1334,159.68,159.63,12.78346517]
[1730779245652,12.60936517,159.69,159.63,9.64936517]
[1730779245857,15.74246517,159.69,159.64,3.134]
[1730779246547,12.78246517,159.69,159.64,3.134]
[1730779246857,12.60936517,159.71,159.65,9.64936517]
[1730779247251,3.1331,159.69,159.65,9.64936517]
[1730779247454,11.07396517,159.72,159.66,9.64936517]
[1730779247654,9.64936517,159.72,159.66,9.64936517]
[1730779248150,3.1327,159.71,159.66,12.78286517]
[1730779249152,9.64936517,159.72,159.66,9.64936517]
[1730779249357,12.78196517,159.72,159.67,3.1333]
[1730779250059,12.78196517,159.72,159.63,2.96]
[1730779250060,6.0923,159.73,159.68,12.78256517]
[1730779250648,2.96,159.73,159.69,12.78226517]
[1730779250854,3.36561,159.74,159.69,12.78226517]
[1730779252160,3.36561,159.74,159.7,3.1328]
[1730779252859,9.88287517,159.74,159.69,9.64936517]
[1730779253058,3.1324,159.73,159.69,12.78226517]
[1730779254461,9.88287517,159.74,159.69,9.64936517]
[1730779254664,3.1323,159.73,159.7,3.1328]
[1730779256254,3.1323,159.73,159.69,12.78236517]
[1730779256655,3.1323,159.73,159.69,9.64936517]
[1730779259364,3.1323,159.73,159.7,3.1328]
[1730779260666,0.23351,159.74,159.72,9.64936517]
[1730779260866,9.64936517,159.78,159.73,9.64936517]
[1730779261869,12.78076517,159.78,159.74,3.132]
[1730779262070,12.78076517,159.78,159.73,9.64936517]
[1730779262867,12.78076517,159.78,159.74,3.132]
[1730779264668,3.1311,159.79,159.75,3.1317]
[1730779266167,3.1314,159.78,159.74,12.78136517]
[1730779266368,12.78076517,159.78,159.74,3.132]
[1730779267966,3.1316,159.77,159.73,12.78146517]
[1730779270872,9.64936517,159.77,159.72,1.3844]
[1730779271176,9.64936517,159.75,159.7,9.64936517]
[1730779271471,3.1323,159.73,159.7,9.64936517]
[1730779271677,9.64936517,159.75,159.7,9.64936517]
[1730779272671,3.1324,159.73,159.7,9.64936517]
[1730779273278,3.1324,159.73,159.7,12.78216517]
[1730779273464,3.1321,159.74,159.7,12.78216517]
[1730779274273,3.1323,159.73,159.7,9.64936517]
[1730779274473,9.64936517,159.75,159.7,9.64936517]
[1730779275271,3.1321,159.74,159.7,12.78206517]
[1730779275469,9.64936517,159.75,159.7,9.64936517]
[1730779276071,12.78126517,159.75,159.71,3.1325]
[1730779276668,3.1327,159.71,159.69,9.64936517]
[1730779276971,3.1327,159.71,159.67,7.4837]
[1730779276972,3.1327,159.71,159.67,17.13306517]
[1730779277167,3.1325,159.72,159.68,7.39900378]
[1730779277477,9.64936517,159.74,159.68,9.64936517]
[1730779277776,3.1325,159.72,159.68,12.78256517]
[1730779279173,3.1325,159.72,159.69,4.26725202]
[1730779279374,3.1325,159.72,159.68,12.78256517]
[1730779279869,3.1325,159.72,159.69,4.26716303]
[1730779280069,3.1325,159.72,159.68,12.78256517]
[1730779280669,3.1325,159.72,159.69,4.26662125]
[1730779280878,3.1325,159.72,159.68,12.78256517]
[1730779281678,9.64936517,159.74,159.68,9.64936517]
[1730779281977,9.64936517,159.7,159.64,9.64936517]
[1730779282276,2.96,159.73,159.52,12.52747992]
[1730779282277,9.64936517,159.66,159.65,4.26956228]
[1730779282476,9.64936517,159.66,159.61,9.64936517]
[1730779282477,3.1342,159.64,159.61,9.64936517]
[1730779282682,9.64936517,159.66,159.62,4.27092252]
[1730779282980,9.64936517,159.66,159.61,9.64936517]
[1730779283178,3.134,159.64,159.62,4.27116465]
[1730779283375,9.64936517,159.67,159.61,9.64936517]
[1730779283572,9.64936517,159.67,159.58,5.7667]
[1730779283573,2.96,159.67,159.62,9.64936517]
[1730779283775,2.96,159.67,159.62,13.91937565]
[1730779283977,2.96,159.67,159.62,9.64936517]
[1730779284179,2.96,159.69,159.66,9.64936517]
[1730779284374,2.96,159.69,159.67,3.1333]
[1730779284674,2.96,159.72,159.67,9.64936517]
[1730779284875,2.96,159.72,159.68,9.64936517]
[1730779285074,3.1324,159.73,159.69,3.1329]
[1730779285481,11.03506517,159.74,159.69,3.1329]
[1730779286273,3.1325,159.72,159.69,3.1329]
[1730779287779,3.1325,159.72,159.68,9.64936517]
[1730779287974,3.1325,159.72,159.68,12.78256517]
[1730779288381,3.1325,159.72,159.66,2.96]
[1730779288382,3.133,159.7,159.67,9.64936517]
[1730779290285,9.64936517,159.71,159.65,9.64936517]
[1730779290286,3.1333,159.68,159.65,9.64936517]
[1730779290481,9.64936517,159.7,159.65,9.64936517]
[1730779290876,12.66936517,159.71,159.65,9.64936517]
[1730779292377,3.1331,159.69,159.66,3.1336]
[1730779293981,3.1331,159.69,159.65,12.78316517]
[1730779294788,3.1331,159.69,159.66,3.1336]
[1730779295590,3.1329,159.7,159.67,12.78266517]
[1730779295789,3.1329,159.7,159.67,9.64936517]
[1730779296089,3.02,159.71,159.67,9.64936517]
[1730779296491,3.133,159.7,159.67,9.64936517]
[1730779297282,3.1331,159.69,159.67,9.64936517]
[1730779297482,3.02,159.71,159.67,9.64936517]
[1730779297683,3.02,159.71,159.68,3.1332]
[1730779298084,3.1325,159.72,159.68,12.78256517]
[1730779298483,1.3857,159.74,159.7,9.64936517]
[1730779298684,3.1323,159.73,159.7,12.78216517]
[1730779299292,4.5178,159.74,159.71,3.1325]
[1730779299494,1.3857,159.74,159.7,9.64936517]
[1730779300188,3.1325,159.73,159.7,12.78216517]
[1730779300589,4.5178,159.74,159.71,3.1326]
[1730779301288,1.3857,159.74,159.7,9.64936517]
[1730779302290,12.66936517,159.75,159.7,9.64936517]
[1730779302596,3.02,159.75,159.7,9.64936517]
[1730779302796,3.1321,159.74,159.71,3.1326]
[1730779305194,3.1321,159.74,159.7,12.78206517]
[1730779307995,9.64936517,159.75,159.7,9.64936517]
[1730779308193,9.64936517,159.74,159.68,9.64936517]
[1730779309105,9.64936517,159.72,159.67,12.66936517]
[1730779309291,9.64936517,159.72,159.64,4.1183]
[1730779309292,9.64936517,159.72,159.65,9.64936517]
[1730779309500,9.64936517,159.72,159.66,4.26028528]
[1730779309695,3.1328,159.71,159.67,3.1334]
[1730779310101,9.64936517,159.73,159.67,9.64936517]
[1730779310309,29.58258154,159.77,159.7,9.64936517]
[1730779310310,9.64936517,159.75,159.7,9.64936517]
[1730779310816,3.132,159.75,159.7,9.64936517]
[1730779311901,3.132,159.75,159.71,3.1327]
[1730779312299,12.78136517,159.75,159.71,3.1327]
[1730779314306,3.132,159.75,159.71,3.1327]
[1730779315700,9.64936517,159.76,159.71,3.1327]
[1730779316006,3.1322,159.74,159.7,12.78206517]
[1730779317208,3.1322,159.74,159.71,3.1326]
[1730779319010,3.1322,159.74,159.7,9.64936517]
[1730779319214,3.1322,159.74,159.7,12.78216517]
[1730779319913,3.1323,159.73,159.7,12.78216517]
[1730779320913,3.1322,159.74,159.7,12.78216517]
[1730779323515,3.1319,159.75,159.72,3.1324]
[1730779323709,3.1319,159.75,159.7,9.64936517]
[1730779323904,9.64936517,159.76,159.7,9.64936517]
[1730779324111,3.1321,159.74,159.7,12.78206517]
[1730779324710,9.64936517,159.74,159.7,9.64936517]
[1730779324911,9.64936517,159.74,159.69,2.7097]
[1730779325105,9.64936517,159.73,159.69,1.4163]
[1730779325312,9.64936517,159.71,159.65,12.78306517]
[1730779325511,9.64936517,159.71,159.66,4.25875698]
[1730779325717,9.64936517,159.71,159.65,12.78306517]
[1730779326018,9.64936517,159.71,159.66,7.39330623]
[1730779326215,9.64936517,159.71,159.66,3.1335]
[1730779326720,3.133,159.7,159.66,3.1335]
[1730779326909,9.64936517,159.71,159.66,9.64936517]
[1730779327106,2.98,159.74,159.69,9.64936517]
[1730779327107,12.62936517,159.74,159.69,9.64936517]
[1730779327314,9.64936517,159.74,159.69,9.64936517]
[1730779328315,3.1326,159.72,159.69,9.64936517]
[1730779328517,3.1326,159.72,159.69,12.78236517]
[1730779330415,12.78156517,159.74,159.71,3.1327]
[1730779330713,3.1322,159.74,159.71,3.1327]
[1730779330915,9.64936517,159.74,159.69,9.64936517]
[1730779331114,3.1323,159.73,159.7,3.1327]
[1730779334210,9.64936517,159.76,159.7,9.64936517]
[1730779334521,12.78086517,159.77,159.72,9.64936517]
[1730779335214,12.78086517,159.77,159.73,3.1322]
[1730779335820,3.1317,159.76,159.73,3.1322]
[1730779336613,9.64936517,159.77,159.72,9.64936517]
[1730779337918,9.64936517,159.77,159.72,12.78176517]
[1730779337919,3.132,159.75,159.72,12.78176517]
[1730779338526,9.64936517,159.76,159.72,9.64936517]
[1730779338720,3.1321,159.74,159.72,9.64936517]
[1730779338922,9.64936517,159.75,159.67,1.3523]
[1730779339226,9.64936517,159.7,159.65,10.96836517]
[1730779339617,3.1334,159.67,159.65,1.319]
[1730779339925,9.64936517,159.68,159.65,1.319]
[1730779340121,3.1336,159.67,159.63,12.78346517]
[1730779340316,9.64936517,159.68,159.63,12.78346517]
[1730779340517,9.64936517,159.68,159.64,4.26722502]
[1730779340717,9.64936517,159.68,159.63,12.78346517]
[1730779341020,9.64936517,159.68,159.64,4.26723138]
[1730779341226,3.1336,159.67,159.63,9.64936517]
[1730779341426,3.1336,159.67,159.64,4.26699126]
[1730779341624,3.1336,159.67,159.63,9.64936517]
[1730779341820,3.1336,159.67,159.64,4.26699126]
[1730779342016,3.1337,159.66,159.63,9.64936517]
[1730779342323,3.1337,159.66,159.64,4.26666869]
[1730779342522,3.1337,159.66,159.61,17.10676517]
[1730779342723,3.1337,159.66,159.62,4.26658857]
[1730779342920,3.1337,159.66,159.63,4.26658857]
[1730779343122,3.1337,159.66,159.61,17.10676517]
[1730779343323,3.1337,159.66,159.62,4.26662728]
[1730779343525,3.1337,159.66,159.63,4.26662728]
[1730779343724,2.98,159.71,159.63,4.26662728]
[1730779343725,3.134,159.64,159.63,4.26662728]
[1730779343923,9.64936517,159.64,159.57,9.64936517]
[1730779344122,9.64936517,159.62,159.55,9.64936517]
[1730779344322,3.1351,159.59,159.56,4.26874739]
[1730779344527,3.1351,159.59,159.57,4.26874739]
[1730779344718,3.1351,159.59,159.55,9.64936517]
[1730779344923,9.64936517,159.6,159.56,4.26861485]
[1730779345422,15.06682925,159.58,159.5,4.26902676]
[1730779345631,15.06682925,159.58,159.51,4.26902676]
[1730779345632,2.98,159.57,159.51,4.26902676]
[1730779345929,2.98,159.57,159.52,4.26902676]
[1730779346124,2.98,159.57,159.49,2.6608]
[1730779346431,3.1358,159.56,159.51,3.1365]
[1730779350232,15.06682925,159.58,159.49,2.6608]
[1730779350427,6.1154,159.57,159.52,3.1363]
[1730779351524,1.2973,159.59,159.5,15.06682925]
[1730779351921,2.98,159.59,159.52,15.06682925]
[1730779352228,3.1353,159.58,159.52,3.1363]
[1730779352818,3.1353,159.58,159.5,16.36232925]
[1730779353023,3.1353,159.58,159.53,3.1362]
[1730779353921,2.98,159.59,159.5,15.06682925]
[1730779354121,3.1356,159.56,159.51,3.1365]
[1730779354928,15.06682925,159.58,159.49,2.6608]
[1730779355122,3.1358,159.55,159.5,3.1367]
[1730779357427,3.1358,159.55,159.51,3.1366]
[1730779359424,16.46332925,159.58,159.51,3.1366]
[1730779359727,3.1357,159.56,159.51,3.1366]
[1730779360440,2.98,159.56,159.52,3.1362]
[1730779360628,2.98,159.56,159.49,2.6608]
[1730779361026,3.1351,159.59,159.54,3.1358]
[1730779361738,3.1352,159.58,159.54,3.1358]
[1730779363034,3.1352,159.58,159.55,3.1358]
[1730779365140,3.1359,159.55,159.52,3.1362]
[1730779365735,3.1357,159.56,159.52,3.1362]
[1730779367136,15.06682925,159.58,159.49,2.6608]
[1730779367330,9.64012007,159.57,159.51,9.64012007]
[1730779367941,9.64012007,159.57,159.53,3.1361]
[1730779367942,12.77562007,159.57,159.53,3.1361]
[1730779368732,12.77562007,159.57,159.51,9.64012007]
[1730779368944,12.77562007,159.57,159.54,3.136]
[1730779370944,12.77562007,159.57,159.53,3.1361]
[1730779371738,12.77562007,159.57,159.5,9.64012007]
[1730779371739,3.1357,159.56,159.5,9.64012007]
[1730779371939,9.64012007,159.57,159.51,9.64012007]
[1730779372342,12.77552007,159.57,159.51,9.64012007]
[1730779372537,9.64012007,159.57,159.51,9.64012007]
[1730779372740,9.64012007,159.58,159.53,9.64012007]
[1730779372944,9.64012007,159.58,159.55,3.1357]
[1730779373636,9.64012007,159.6,159.54,9.64012007]
[1730779373949,29.5045911,159.64,159.56,9.64012007]
[1730779373950,9.64012007,159.61,159.56,9.64012007]
[1730779374343,9.64012007,159.61,159.59,3.1349]
[1730779374543,9.64012007,159.61,159.56,9.64012007]
[1730779374944,9.64012007,159.61,159.58,3.1352]
[1730779376446,9.64012007,159.59,159.55,1.3655]
[1730779376646,9.64012007,159.59,159.56,3.1355]
[1730779377153,12.77522007,159.59,159.55,4.5012]
[1730779377453,3.1351,159.59,159.55,4.5012]
[1730779378745,3.1352,159.59,159.55,4.5013]
[1730779379946,15.05997628,159.62,159.55,1.3655]
[1730779380143,6.0943,159.63,159.59,3.1348]
[1730779380348,3.1343,159.63,159.59,3.1348]
[1730779381845,3.1337,159.66,159.62,3.1343]
[1730779382046,3.1337,159.66,159.57,18.01997628]
[1730779382448,3.1337,159.66,159.61,3.1344]
[1730779383047,3.1337,159.66,159.61,3.1345]
[1730779383453,3.1337,159.66,159.57,18.01997628]
[1730779383745,3.1337,159.66,159.61,3.1344]
[1730779383949,3.1337,159.66,159.57,18.01997628]
[1730779384150,3.1337,159.66,159.62,3.1344]
[1730779386358,21.15317628,159.69,159.64,3.1339]
[1730779387357,2.0246,159.73,159.64,3.1339]
[1730779387358,3.1333,159.68,159.64,3.1339]
[1730779390257,18.01997628,159.71,159.62,2.6976]
[1730779390459,15.05997628,159.71,159.66,3.1336]
[1730779391065,15.05997628,159.71,159.67,3.1334]
[1730779391668,3.133,159.7,159.67,3.1334]
[1730779392267,16.47937628,159.73,159.65,2.96]
[1730779392468,18.01997628,159.75,159.65,18.01997628]
[1730779392674,3.1321,159.74,159.71,3.1325]
[1730779392975,15.05997628,159.75,159.65,18.01997628]
[1730779393167,18.19187628,159.75,159.65,18.01997628]
[1730779393371,43.41359884,159.77,159.67,15.05997628]
[1730779393567,43.41359884,159.77,159.68,2.5774]
[1730779393765,43.41359884,159.77,159.69,2.96]
[1730779395268,43.41359884,159.77,159.71,3.1326]
[1730779395459,43.41359884,159.77,159.69,2.96]
[1730779396270,18.19197628,159.75,159.7,3.1327]
[1730779396474,15.05997628,159.75,159.7,3.1327]
[1730779397276,3.1321,159.74,159.7,3.1327]
[1730779402172,43.41359884,159.77,159.7,3.1327]
[1730779402467,3.1319,159.75,159.7,3.1327]
[1730779403371,12.76255224,159.74,159.7,3.1327]
[1730779404667,3.1319,159.75,159.71,3.1326]
[1730779405873,9.63045224,159.74,159.71,3.1326]
[1730779407680,12.76265224,159.74,159.7,3.1327]
[1730779407872,9.63045224,159.74,159.69,12.59045224]
[1730779408072,28.35362256,159.77,159.68,2.5774]
[1730779408073,9.63045224,159.72,159.68,1.2928]
[1730779408375,9.63045224,159.72,159.66,2.96]
[1730779409077,3.133,159.7,159.66,6.0935]
[1730779410880,3.1331,159.69,159.65,12.76415224]
[1730779411075,9.63045224,159.7,159.65,9.63045224]
[1730779411480,3.1332,159.69,159.65,12.76425224]
[1730779411784,9.63045224,159.68,159.63,12.55045224]
[1730779412175,9.63045224,159.68,159.63,15.68465224]
[1730779412779,9.63045224,159.68,159.63,12.55045224]
[1730779412978,9.63045224,159.68,159.64,3.134]
[1730779412979,12.76375224,159.68,159.64,3.134]
[1730779413284,9.63045224,159.7,159.65,9.63045224]
[1730779413589,12.76345224,159.7,159.66,3.1335]
[1730779415078,3.1332,159.69,159.65,12.76425224]
[1730779415580,9.63045224,159.7,159.65,9.63045224]
[1730779415784,9.63045224,159.69,159.63,12.55045224]
[1730779416183,3.1335,159.67,159.65,9.63045224]
[1730779416384,9.63045224,159.7,159.65,9.63045224]
[1730779417175,3.1334,159.68,159.65,9.63045224]
[1730779418182,4.2064,159.73,159.63,2.92]
[1730779418183,12.76325224,159.71,159.67,3.1333]
[1730779418483,3.1328,159.71,159.67,12.76375224]
[1730779419681,13.83685224,159.73,159.65,9.63045224]
[1730779419682,9.63045224,159.7,159.65,9.63045224]
[1730779419889,4.2064,159.73,159.64,12.76445224]
[1730779419890,3.1333,159.68,159.64,12.76445224]
[1730779420084,9.63045224,159.69,159.64,9.63045224]
[1730779420286,12.76365224,159.69,159.65,3.1338]
[1730779421189,3.1333,159.68,159.65,3.1338]
[1730779421489,3.1333,159.68,159.64,12.76435224]
[1730779434996,9.63045224,159.67,159.62,9.63045224]
[1730779435197,9.63045224,159.66,159.61,3.1345]
[1730779435599,3.1339,159.65,159.6,11.04535224]
[1730779435899,9.63045224,159.66,159.62,3.1344]
[1730779437391,12.76415224,159.66,159.62,3.1344]
[1730779437991,2.92,159.69,159.6,1.4149]
[1730779437992,9.63045224,159.65,159.6,4.5497]
[1730779438794,9.63045224,159.65,159.59,13.96995224]
[1730779439591,3.1342,159.64,159.6,3.1348]
[1730779440895,9.63045224,159.65,159.59,11.04995224]
[1730779441394,9.63045224,159.63,159.58,9.63045224]
[1730779441594,3.1349,159.6,159.56,12.76605224]
[1730779441804,9.63045224,159.62,159.56,9.63045224]
[1730779442296,9.63045224,159.62,159.56,13.86690524]
[1730779442602,9.63045224,159.62,159.56,9.63045224]
[1730779442804,3.1348,159.61,159.57,3.1354]
[1730779443105,9.63045224,159.63,159.57,9.63045224]
[1730779443405,3.1341,159.64,159.6,12.76525224]
[1730779444605,3.1342,159.63,159.6,9.63045224]
[1730779446600,3.1342,159.63,159.59,3.135]
[1730779447207,2.88,159.65,159.58,9.63045224]
[1730779447208,12.76505224,159.62,159.58,3.1352]